bitfinex/quotes_SOLUSD_20220114
["timestamp","ask_amount","ask_price","bid_price","bid_amount"]
[1642164345183,10.80272423,144.71,144.65,2.763]
[1642164345385,2.763,144.7,144.65,2.763]
[1642164345583,2.763,144.7,144.65,2.783]
[1642164345784,10.3724,144.68,144.65,0.02]
[1642164346082,6.06439994,144.67,144.65,0.02]
[1642164346683,6.32439994,144.67,144.65,0.02]
[1642164347384,37.3726,144.66,144.65,0.02]
[1642164347585,10.6326,144.66,144.65,0.02]
[1642164348286,0.26,144.66,144.65,0.02]
[1642164349385,42.26,144.66,144.65,0.02]
[1642164350391,55.3967,144.66,144.61,2.765]
[1642164350887,55.1367,144.66,144.61,2.765]
[1642164351493,52.3717,144.66,144.61,2.765]
[1642164353002,52.3717,144.66,144.58,2.765]
[1642164353496,52.6317,144.66,144.58,19.3882]
[1642164353896,10.6317,144.66,144.58,19.3882]
[1642164354198,2.765,144.69,144.58,19.3882]
[1642164354398,0.17412423,144.71,144.59,11.51616082]
[1642164354597,0.17412423,144.71,144.65,10.3671]
[1642164354997,0.17412423,144.71,144.65,16.3671]
[1642164355799,0.17412423,144.71,144.65,16.6171]
[1642164355998,0.17412423,144.71,144.65,16.3671]
[1642164356200,10.54262423,144.71,144.65,6.0]
[1642164356400,10.54262423,144.71,144.64,16.82507421]
[1642164356604,13.56562423,144.71,144.62,2.763]
[1642164356903,13.56562423,144.71,144.6,2.765]
[1642164357102,13.56562423,144.71,144.6,3.015]
[1642164357302,13.81562423,144.71,144.6,19.386]
[1642164357502,13.81562423,144.71,144.6,13.386]
[1642164357701,13.81562423,144.71,144.6,0.25]
[1642164357903,10.06,144.7,144.6,0.25]
[1642164358126,10.3731,144.65,144.6,0.25]
[1642164358325,10.3731,144.65,144.61,2.765]
[1642164358524,10.6331,144.65,144.61,0.25]
[1642164359726,10.6331,144.65,144.59,9.015]
[1642164360028,0.26,144.65,144.59,19.3872]
[1642164360427,0.26,144.67,144.59,19.3872]
[1642164360828,83.135,144.7,144.59,19.3872]
[1642164361829,10.371,144.68,144.59,19.3872]
[1642164362028,10.631,144.68,144.59,19.3872]
[1642164362830,10.371,144.68,144.59,19.3872]
[1642164364230,10.3696,144.69,144.59,19.3872]
[1642164364530,10.6196,144.69,144.59,19.3872]
[1642164366429,10.6296,144.69,144.59,19.3872]
[1642164368037,0.17412423,144.71,144.6,69.8]
[1642164368245,0.17412423,144.71,144.66,10.3668]
[1642164368633,0.17412423,144.71,144.66,10.6168]
[1642164368832,0.17412423,144.71,144.66,24.94664034]
[1642164369131,0.17412423,144.71,144.66,24.69664034]
[1642164369532,0.17412423,144.71,144.66,24.94664034]
[1642164370732,0.17412423,144.71,144.66,32.66964034]
[1642164371135,0.17412423,144.71,144.66,38.66964034]
[1642164372032,0.17412423,144.71,144.67,2.763]
[1642164372233,0.17412423,144.71,144.69,10.364]
[1642164372432,0.17412423,144.71,144.69,16.843]
[1642164372633,19.05144706,144.78,144.7,27.0]
[1642164372834,16.28844706,144.78,144.7,29.763]
[1642164373134,16.28844706,144.78,144.7,36.013]
[1642164373432,16.28844706,144.78,144.7,35.763]
[1642164373836,10.3631,144.78,144.7,35.763]
[1642164374034,10.3631,144.78,144.71,10.3634]
[1642164374537,10.3631,144.78,144.72,27.69932727]
[1642164374835,10.3623,144.79,144.72,35.40932727]
[1642164375037,10.3623,144.79,144.72,52.02222727]
[1642164375434,10.3623,144.79,144.72,51.77222727]
[1642164376236,10.6123,144.79,144.72,51.77222727]
[1642164376640,10.6123,144.79,144.72,24.0729]
[1642164376841,10.3623,144.79,144.7,35.8582]
[1642164377138,10.3623,144.79,144.7,36.1082]
[1642164377339,10.3623,144.79,144.7,33.3452]
[1642164377738,10.3623,144.79,144.7,36.1082]
[1642164377938,10.6223,144.79,144.7,36.1082]
[1642164378137,80.4223,144.79,144.7,2.763]
[1642164378339,80.4223,144.79,144.7,3.013]
[1642164379141,80.4223,144.79,144.7,2.763]
[1642164379339,80.6723,144.79,144.7,2.763]
[1642164379741,10.3668,144.73,144.68,2.763]
[1642164379940,10.6268,144.73,144.68,6.0]
[1642164380139,10.6268,144.73,144.67,28.533]
[1642164380643,10.6268,144.73,144.67,6.0]
[1642164381041,10.6268,144.73,144.66,55.09072641]
[1642164381246,10.6268,144.73,144.67,2.763]
[1642164381543,10.6268,144.73,144.67,19.1294]
[1642164381740,10.6268,144.73,144.67,2.763]
[1642164382944,10.6268,144.73,144.66,65.45802641]
[1642164383144,10.6268,144.73,144.66,65.70802641]
[1642164383543,10.3668,144.73,144.66,65.70802641]
[1642164384543,10.3668,144.73,144.67,2.763]
[1642164384946,10.6268,144.73,144.64,2.763]
[1642164385747,26.91791582,144.72,144.64,2.763]
[1642164385946,10.3697,144.68,144.64,2.763]
[1642164386449,10.6297,144.68,144.64,2.763]
[1642164386947,10.6297,144.68,144.64,8.763]
[1642164387347,10.6297,144.68,144.64,2.763]
[1642164388449,10.6297,144.68,144.64,6.0]
[1642164388649,29.68091582,144.72,144.63,19.1344]
[1642164388850,26.91791582,144.72,144.63,19.1344]
[1642164389156,27.17791582,144.72,144.63,19.1344]
[1642164389352,27.17791582,144.72,144.63,19.3844]
[1642164390350,10.3676,144.71,144.63,19.3844]
[1642164390551,10.6276,144.71,144.63,19.3844]
[1642164390753,0.26,144.71,144.63,19.3844]
[1642164390953,0.26,144.71,144.63,44.2445]
[1642164391154,1.97862171,144.68,144.63,44.2445]
[1642164392083,2.23862171,144.68,144.63,44.2445]
[1642164392283,0.26,144.68,144.63,44.2445]
[1642164392482,2.23862171,144.69,144.63,44.2445]
[1642164392886,1.97862171,144.69,144.63,44.2445]
[1642164395183,2.23862171,144.69,144.63,44.2445]
[1642164395582,1.97862171,144.69,144.63,44.2445]
[1642164395784,1.97862171,144.69,144.64,10.06]
[1642164396085,1.97862171,144.69,144.66,10.3638]
[1642164396282,7.87655761,144.72,144.68,39.0]
[1642164396485,7.87655761,144.72,144.69,14.48380681]
[1642164396983,3.91950276,144.72,144.69,20.73380681]
[1642164397283,3.91950276,144.74,144.69,20.73380681]
[1642164397485,4.17950276,144.74,144.7,10.3635]
[1642164397885,4.17950276,144.74,144.7,16.6135]
[1642164398285,0.26,144.74,144.7,16.6135]
[1642164398585,14.54390276,144.76,144.7,16.6135]
[1642164399187,10.6244,144.76,144.7,16.6135]
[1642164399989,14.54390276,144.76,144.7,16.3635]
[1642164401289,14.54390276,144.76,144.7,16.6135]
[1642164403394,14.54390276,144.76,144.7,19.3765]
[1642164404197,10.6244,144.76,144.7,19.3765]
[1642164405098,14.54390276,144.76,144.7,19.3765]
[1642164405297,14.54390276,144.76,144.7,16.6135]
[1642164406799,14.28390276,144.76,144.7,16.6135]
[1642164407700,14.28390276,144.76,144.7,10.3635]
[1642164407900,14.53390276,144.76,144.68,2.763]
[1642164408108,14.79390276,144.76,144.68,2.763]
[1642164408301,14.79390276,144.76,144.67,22.9093]
[1642164408501,14.79390276,144.76,144.66,2.763]
[1642164408701,16.49467864,144.76,144.65,26.83629078]
[1642164408903,16.49467864,144.76,144.66,2.763]
[1642164409101,16.49467864,144.76,144.66,8.763]
[1642164409301,3.91950276,144.74,144.66,8.763]
[1642164409604,10.367,144.72,144.66,8.763]
[1642164410002,0.26,144.72,144.66,19.38]
[1642164410605,4.17950276,144.74,144.66,19.38]
[1642164412408,10.625,144.74,144.66,19.38]
[1642164413407,14.54450276,144.74,144.66,19.38]
[1642164415807,10.625,144.74,144.66,19.13]
[1642164416008,10.875,144.74,144.66,2.763]
[1642164416507,10.625,144.74,144.66,2.763]
[1642164416709,10.875,144.74,144.66,2.763]
[1642164416910,10.3684,144.7,144.65,64.66709078]
[1642164417109,10.3684,144.7,144.65,70.66709078]
[1642164417312,10.6284,144.7,144.65,60.29909078]
[1642164417810,10.6284,144.7,144.65,35.59929078]
[1642164418237,10.6284,144.7,144.65,26.83629078]
[1642164418437,10.6284,144.7,144.65,32.83629078]
[1642164418836,10.3673,144.71,144.65,32.83629078]
[1642164419238,3.91950276,144.72,144.65,43.20439078]
[1642164420338,10.3676,144.71,144.65,32.83629078]
[1642164420538,10.6276,144.71,144.63,2.763]
[1642164420738,10.6276,144.71,144.64,6.25]
[1642164420940,10.6276,144.71,144.64,0.25]
[1642164421445,10.3676,144.71,144.64,0.25]
[1642164421841,10.3676,144.71,144.63,39.83842608]
[1642164422840,10.6276,144.71,144.63,9.013]
[1642164423043,10.6276,144.71,144.63,2.763]
[1642164423044,10.371,144.67,144.63,2.763]
[1642164423442,10.631,144.67,144.6,24.37]
[1642164423843,10.631,144.67,144.59,26.5562]
[1642164424045,18.89200441,144.67,144.59,26.5562]
[1642164424245,18.89200441,144.67,144.59,2.765]
[1642164424443,18.89200441,144.67,144.58,2.765]
[1642164424644,88.69200441,144.67,144.58,2.765]
[1642164425048,88.94200441,144.67,144.58,2.765]
[1642164425847,2.765,144.66,144.58,2.765]
[1642164426145,2.765,144.67,144.58,2.765]
[1642164426346,14.28900276,144.68,144.58,2.765]
[1642164426546,0.25,144.67,144.58,2.765]
[1642164426947,0.25,144.67,144.58,19.1378]
[1642164427447,29.02192342,144.68,144.58,19.1378]
[1642164427649,10.371,144.66,144.58,13.1378]
[1642164427849,10.371,144.66,144.58,10.3728]
[1642164428047,10.631,144.66,144.58,10.3728]
[1642164428450,10.631,144.66,144.57,37.431]
[1642164428649,2.765,144.65,144.57,34.666]
[1642164428849,10.3744,144.62,144.57,34.666]
[1642164429051,10.6344,144.62,144.57,16.3739]
[1642164430049,10.6344,144.62,144.57,6.0]
[1642164430251,0.26,144.62,144.57,6.0]
[1642164430451,10.3732,144.63,144.56,30.86149735]
[1642164430452,0.26,144.63,144.56,30.86149735]
[1642164430849,27.485,144.65,144.56,30.86149735]
[1642164431353,10.3731,144.63,144.56,41.23619735]
[1642164431550,10.8831,144.63,144.56,30.86149735]
[1642164431751,8.30189737,144.62,144.56,24.86149735]
[1642164431950,8.56189737,144.62,144.55,2.765]
[1642164432551,10.3759,144.59,144.55,2.765]
[1642164432755,10.3759,144.59,144.54,23.5067]
[1642164432952,10.6359,144.59,144.55,2.766]
[1642164433955,10.6359,144.59,144.54,2.766]
[1642164434159,10.6359,144.59,144.53,2.766]
[1642164434363,10.6359,144.59,144.52,72.40944278]
[1642164434561,10.6359,144.59,144.52,56.03184278]
[1642164434762,10.6359,144.59,144.51,2.767]
[1642164434962,10.3799,144.54,144.5,2.767]
[1642164435365,10.6399,144.54,144.5,3.017]
[1642164435566,10.6399,144.54,144.48,2.767]
[1642164436793,10.6399,144.54,144.48,8.767]
[1642164437968,10.6399,144.54,144.48,2.767]
[1642164438974,10.8899,144.54,144.48,2.767]
[1642164439171,10.3849,144.49,144.45,2.767]
[1642164439372,8.30189737,144.48,144.44,3.2403712]
[1642164439573,8.56189737,144.48,144.44,3.2403712]
[1642164440372,10.3857,144.46,144.44,3.2403712]
[1642164440576,6.06439994,144.45,144.42,2.767]
[1642164440972,6.32439994,144.45,144.42,2.767]
[1642164442274,6.32439994,144.45,144.42,19.1517]
[1642164442474,6.32439994,144.45,144.42,16.3847]
[1642164443281,6.32439994,144.45,144.42,6.0]
[1642164443478,6.32439994,144.45,144.41,19.1544]
[1642164443677,6.32439994,144.45,144.41,19.4044]
[1642164445299,6.06439994,144.45,144.41,19.4044]
[1642164445498,2.769,144.53,144.42,74.0]
[1642164445700,2.769,144.53,144.46,10.3817]
[1642164445898,2.767,144.55,144.46,10.3817]
[1642164446098,2.767,144.55,144.46,10.6317]
[1642164446305,29.5243522,144.55,144.46,25.73637848]
[1642164446499,29.5243522,144.55,144.46,31.73637848]
[1642164446899,29.7743522,144.55,144.46,31.73637848]
[1642164447199,10.3807,144.53,144.46,31.73637848]
[1642164447598,10.6407,144.53,144.46,31.73637848]
[1642164448303,10.6407,144.53,144.46,6.0]
[1642164448600,10.6407,144.53,144.46,2.767]
[1642164448601,10.8907,144.53,144.46,2.767]
[1642164448799,10.8907,144.53,144.45,6.0]
[1642164448800,13.6577,144.53,144.45,6.0]
[1642164449099,13.6577,144.53,144.44,8.767]
[1642164449500,69.8,144.52,144.44,8.767]
[1642164449702,13.6577,144.53,144.44,2.767]
[1642164449904,10.385,144.47,144.42,2.767]
[1642164450402,10.645,144.47,144.41,26.0484]
[1642164451204,10.645,144.47,144.41,2.769]
[1642164452009,10.645,144.47,144.41,8.769]
[1642164452207,10.645,144.47,144.41,2.769]
[1642164452408,10.645,144.47,144.41,8.769]
[1642164452819,80.445,144.47,144.41,8.769]
[1642164453012,10.895,144.47,144.41,2.769]
[1642164454214,10.895,144.47,144.41,3.019]
[1642164454815,10.895,144.47,144.41,0.25]
[1642164455015,10.895,144.47,144.38,8.769]
[1642164455231,10.895,144.47,144.38,2.769]
[1642164455416,2.769,144.46,144.36,3.2403712]
[1642164455619,10.3906,144.41,144.36,3.2403712]
[1642164456021,10.9006,144.41,144.36,3.2403712]
[1642164456219,37.39245052,144.41,144.36,3.2403712]
[1642164456619,37.39245052,144.41,144.36,3.4903712]
[1642164457020,37.43245052,144.41,144.36,3.4903712]
[1642164457221,37.43245052,144.41,144.36,0.25]
[1642164457622,37.43245052,144.41,144.34,33.765]
[1642164458423,107.23245052,144.41,144.34,33.765]
[1642164459123,107.23245052,144.41,144.34,9.019]
[1642164459924,107.23245052,144.41,144.34,6.25]
[1642164460126,37.43245052,144.41,144.34,6.25]
[1642164460325,10.9406,144.41,144.34,0.25]
[1642164460526,10.4306,144.41,144.33,19.4111]
[1642164460725,0.04,144.41,144.33,19.4111]
[1642164461130,0.04,144.41,144.33,43.4862]
[1642164461328,0.04,144.41,144.33,8.77]
[1642164461530,2.77,144.4,144.33,8.77]
[1642164461728,34.6472,144.38,144.33,8.77]
[1642164461927,10.3942,144.37,144.33,8.77]
[1642164462329,10.6542,144.37,144.33,8.77]
[1642164463353,10.6542,144.37,144.33,6.0]
[1642164463553,10.6542,144.37,144.31,8.771]
[1642164463757,10.6542,144.37,144.31,3.021]
[1642164463954,10.6542,144.37,144.31,9.021]
[1642164464155,80.4542,144.37,144.31,9.021]
[1642164464454,10.6542,144.37,144.31,9.021]
[1642164465254,10.6542,144.37,144.31,8.771]
[1642164465656,10.9042,144.37,144.31,8.771]
[1642164465857,10.3958,144.34,144.31,6.0]
[1642164466058,10.6558,144.34,144.3,31.2868544]
[1642164466858,10.6558,144.34,144.3,6.0]
[1642164467062,10.6558,144.34,144.28,8.771]
[1642164467259,10.3934,144.35,144.28,72.571]
[1642164467459,28.91650952,144.39,144.28,78.831]
[1642164467460,31.68750952,144.39,144.28,78.831]
[1642164467659,28.91650952,144.39,144.28,78.831]
[1642164467860,28.91650952,144.39,144.29,24.95081248]
[1642164468061,28.91650952,144.39,144.3,2.771]
[1642164468462,29.17650952,144.39,144.3,9.021]
[1642164468865,10.3925,144.36,144.3,9.021]
[1642164469062,10.6525,144.36,144.3,9.021]
[1642164469265,10.9025,144.36,144.3,6.0]
[1642164469462,13.6735,144.36,144.27,8.771]
[1642164469664,13.6735,144.36,144.27,3.021]
[1642164469964,13.6735,144.36,144.27,8.771]
[1642164471266,83.4735,144.36,144.27,9.021]
[1642164471867,83.4735,144.36,144.27,2.771]
[1642164472066,10.3989,144.31,144.23,2.771]
[1642164472266,18.2199,144.31,144.22,2.771]
[1642164472469,18.4799,144.31,144.21,2.771]
[1642164472868,4.48780851,144.3,144.21,2.771]
[1642164473066,10.3992,144.27,144.22,10.3989]
[1642164473271,10.3992,144.27,144.23,2.773]
[1642164473467,10.6592,144.27,144.23,3.023]
[1642164473668,10.6592,144.27,144.23,0.25]
[1642164474368,0.26,144.27,144.24,2.771]
[1642164474568,10.6583,144.28,144.24,3.021]
[1642164475068,10.6583,144.28,144.24,0.25]
[1642164475268,10.6583,144.28,144.23,2.771]
[1642164475469,10.6583,144.28,144.23,8.771]
[1642164475870,10.6583,144.28,144.23,2.771]
[1642164477273,10.6583,144.28,144.23,3.021]
[1642164478773,10.6583,144.28,144.23,0.25]
[1642164478976,10.6583,144.28,144.21,19.4206]
[1642164479174,10.6583,144.28,144.21,13.4206]
[1642164479476,10.6583,144.28,144.21,19.4206]
[1642164480478,10.3983,144.28,144.21,19.4206]
[1642164480678,10.06,144.34,144.21,19.4206]
[1642164480877,10.06,144.36,144.21,35.8126]
[1642164481077,2.771,144.35,144.21,35.8126]
[1642164481483,25.25693385,144.35,144.21,35.8126]
[1642164481678,13.1648,144.35,144.21,35.8126]
[1642164481876,13.4148,144.35,144.21,35.8126]
[1642164482078,13.4148,144.35,144.21,36.0726]
[1642164482277,13.4148,144.35,144.28,10.3936]
[1642164482477,13.4148,144.35,144.28,16.6436]
[1642164482677,10.3938,144.35,144.29,14.10966755]
[1642164482881,2.771,144.38,144.3,2.771]
[1642164483179,2.771,144.38,144.3,3.021]
[1642164483380,2.771,144.38,144.3,9.021]
[1642164483877,10.392,144.37,144.3,9.021]
[1642164484081,10.902,144.37,144.3,6.25]
[1642164484980,10.902,144.37,144.3,0.25]
[1642164485182,10.3933,144.35,144.3,6.25]
[1642164485379,10.3933,144.35,144.29,20.35966755]
[1642164485581,0.26,144.35,144.29,20.35966755]
[1642164485982,3.281,144.36,144.29,20.35966755]
[1642164486182,0.51,144.36,144.29,20.35966755]
[1642164486382,10.9026,144.36,144.29,6.25]
[1642164486583,10.9026,144.36,144.27,8.771]
[1642164486880,10.9026,144.36,144.27,2.771]
[1642164487082,10.9026,144.36,144.27,8.771]
[1642164487482,0.04,144.35,144.27,8.771]
[1642164487684,10.3955,144.32,144.27,6.0]
[1642164487982,10.6555,144.32,144.27,0.25]
[1642164489315,10.6555,144.32,144.26,37.89934297]
[1642164489484,10.6555,144.32,144.26,31.89934297]
[1642164490188,10.6555,144.32,144.26,6.25]
[1642164490385,10.6555,144.32,144.26,0.25]
[1642164490594,10.6555,144.32,144.24,9.021]
[1642164491185,10.6555,144.32,144.24,3.021]
[1642164492285,10.9055,144.32,144.24,2.771]
[1642164492485,10.4004,144.28,144.24,2.771]
[1642164492887,10.6604,144.28,144.24,2.771]
[1642164493486,28.76070159,144.27,144.21,2.771]
[1642164493888,10.4004,144.25,144.21,3.021]
[1642164494088,10.6604,144.25,144.21,3.021]
[1642164495788,10.6604,144.25,144.21,9.021]
[1642164496190,0.26,144.25,144.21,6.25]
[1642164496593,10.6599,144.26,144.21,6.25]
[1642164498090,10.6599,144.26,144.21,6.0]
[1642164498291,10.9099,144.26,144.2,8.773]
[1642164498491,13.6829,144.26,144.2,6.0]
[1642164498691,13.6829,144.26,144.19,3.2403712]
[1642164499493,13.6829,144.26,144.19,3.4903712]
[1642164499993,13.6829,144.26,144.19,0.25]
[1642164500394,13.6829,144.26,144.17,3.023]
[1642164500793,13.6829,144.26,144.17,28.61124771]
[1642164500794,13.4229,144.26,144.17,28.61124771]
[1642164500993,13.4229,144.26,144.17,34.61124771]
[1642164501195,13.4229,144.26,144.17,9.023]
[1642164501895,10.6499,144.26,144.17,9.023]
[1642164502093,10.6499,144.26,144.17,35.22587837]
[1642164502293,10.6499,144.26,144.17,45.62797837]
[1642164504096,10.9099,144.26,144.18,3.95372086]
[1642164504330,10.9099,144.26,144.19,2.773]
[1642164504528,10.9099,144.26,144.19,9.023]
[1642164505930,10.6499,144.26,144.19,9.023]
[1642164506834,13.4229,144.26,144.19,9.023]
[1642164507430,13.6829,144.26,144.19,9.023]
[1642164509340,13.6829,144.26,144.19,3.023]
[1642164510333,10.9099,144.26,144.19,3.023]
[1642164511339,10.9099,144.26,144.19,0.25]
[1642164511534,10.9099,144.26,144.18,3.023]
[1642164512235,10.9099,144.26,144.18,9.023]
[1642164513036,13.6829,144.26,144.18,9.023]
[1642164513335,13.6829,144.26,144.18,19.4245]
[1642164514135,10.9099,144.26,144.18,19.4245]
[1642164514339,10.9099,144.26,144.18,9.023]
[1642164515236,13.6829,144.26,144.18,9.023]
[1642164515439,13.4229,144.26,144.18,9.023]
[1642164516339,10.6499,144.26,144.18,19.4245]
[1642164516942,10.9099,144.26,144.18,19.4245]
[1642164518041,10.9099,144.26,144.18,24.9855]
[1642164518741,13.6829,144.26,144.18,24.9855]
[1642164519141,13.1729,144.26,144.18,24.9855]
[1642164519343,2.773,144.26,144.19,10.06]
[1642164519548,26.2313,144.35,144.22,10.3968]
[1642164519740,36.2913,144.35,144.23,2.771]
[1642164519942,36.2913,144.35,144.23,9.021]
[1642164520243,60.2382775,144.35,144.24,17.24280358]
[1642164520442,12.08719411,144.34,144.25,13.1677]
[1642164520643,1.69249411,144.34,144.25,20.2017]
[1642164520843,1.69249411,144.34,144.25,26.7117]
[1642164521042,1.69249411,144.34,144.25,26.4517]
[1642164521745,27.68628499,144.36,144.29,1.96826898]
[1642164521943,25.17528499,144.36,144.29,20.09066898]
[1642164522946,25.17528499,144.36,144.3,24.86733291]
[1642164523144,0.26,144.36,144.3,35.26033291]
[1642164523344,0.26,144.36,144.3,41.51033291]
[1642164523546,10.3929,144.38,144.3,41.51033291]
[1642164523747,4.46349411,144.39,144.3,41.51033291]
[1642164524046,1.69249411,144.39,144.3,41.77033291]
[1642164524447,1.69249411,144.4,144.3,43.73860189]
[1642164524749,1.69249411,144.4,144.3,66.76300189]
[1642164524948,1.94249411,144.4,144.3,66.76300189]
[1642164525147,1.69249411,144.4,144.3,66.76300189]
[1642164525349,12.08379411,144.4,144.3,66.76300189]
[1642164525552,1.69249411,144.4,144.32,1.96826898]
[1642164525750,0.26,144.4,144.35,10.3893]
[1642164525948,4.72349411,144.42,144.35,19.0293]
[1642164526148,1.95249411,144.42,144.36,18.57834904]
[1642164526550,2.20249411,144.42,144.36,18.57834904]
[1642164526751,1.95249411,144.42,144.36,24.82834904]
[1642164526952,1.95249411,144.42,144.36,35.21694904]
[1642164527154,0.26,144.42,144.36,35.21694904]
[1642164527354,0.26,144.42,144.36,29.21694904]
[1642164527553,1.95249411,144.43,144.36,35.21694904]
[1642164528253,0.26,144.43,144.36,45.27694904]
[1642164528553,0.04,144.42,144.36,45.53694904]
[1642164528753,0.04,144.42,144.37,2.77]
[1642164528956,0.04,144.42,144.39,10.3862]
[1642164529153,0.04,144.42,144.4,6.06439994]
[1642164530356,0.04,144.42,144.4,16.70029994]
[1642164530581,0.04,144.42,144.4,22.70029994]
[1642164530781,0.04,144.42,144.4,16.70029994]
[1642164531182,0.04,144.42,144.41,56.769]
[1642164531382,0.04,144.42,144.41,67.1537]
[1642164531583,0.04,144.42,144.41,67.4037]
[1642164532492,1.69249411,144.49,144.41,73.6637]
[1642164532686,1.69249411,144.49,144.41,83.7237]
[1642164533091,1.69249411,144.5,144.41,83.7237]
[1642164533487,1.69249411,144.5,144.46,10.3806]
[1642164533689,1.69249411,144.5,144.46,18.6556]
[1642164533886,1.69249411,144.5,144.46,24.9056]
[1642164534286,1.69249411,144.52,144.46,24.9056]
[1642164534487,1.69249411,144.52,144.47,2.767]
[1642164534785,1.69249411,144.52,144.49,10.3793]
[1642164534990,1.69249411,144.52,144.5,6.06439994]
[1642164535386,1.69249411,144.54,144.5,6.06439994]
[1642164535786,1.69249411,144.54,144.5,13.29039994]
[1642164535987,1.69249411,144.54,144.5,23.91889994]
[1642164536489,1.69249411,144.55,144.5,23.91889994]
[1642164536991,1.69249411,144.55,144.5,29.91889994]
[1642164537391,1.69249411,144.55,144.5,30.17889994]
[1642164537692,1.69249411,144.55,144.5,29.91889994]
[1642164537889,1.69249411,144.56,144.5,29.91889994]
[1642164538088,1.69249411,144.56,144.5,23.91889994]
[1642164538592,1.95249411,144.56,144.5,23.91889994]
[1642164539490,5.92534706,144.62,144.52,69.8]
[1642164539691,5.92534706,144.62,144.57,10.3723]
[1642164539891,4.706e-05,144.62,144.58,2.766]
[1642164540294,4.706e-05,144.62,144.58,9.276]
[1642164540492,4.706e-05,144.62,144.59,34.5617]
[1642164540690,4.706e-05,144.62,144.6,8.83039994]
[1642164540891,345.1696779,144.68,144.6,27.38979994]
[1642164541094,0.25,144.68,144.61,24.86733291]
[1642164541291,2.766,144.7,144.61,24.86733291]
[1642164541591,2.766,144.7,144.61,31.11733291]
[1642164541992,2.766,144.7,144.63,10.3687]
[1642164542194,2.766,144.7,144.6,2.766]
[1642164542493,13.1367,144.7,144.6,2.766]
[1642164542695,13.3867,144.7,144.6,2.766]
[1642164543094,13.3867,144.7,144.61,22.67893026]
[1642164543295,3.88485692,144.69,144.61,22.67893026]
[1642164543494,2.765,144.68,144.61,22.67893026]
[1642164543794,2.765,144.68,144.61,0.02]
[1642164543995,3.015,144.68,144.61,0.02]
[1642164544294,13.1366,144.68,144.61,0.02]
[1642164544494,3.88485692,144.67,144.61,0.02]
[1642164544894,4.14485692,144.67,144.61,0.02]
[1642164545297,14.51715692,144.67,144.61,0.02]
[1642164545499,4.39485692,144.67,144.61,0.02]
[1642164545697,4.13485692,144.67,144.61,0.02]
[1642164545897,3.88485692,144.67,144.61,0.02]
[1642164546499,3.88485692,144.67,144.61,10.39]
[1642164546699,20.4287,144.72,144.62,2.765]
[1642164546700,2.765,144.71,144.62,2.765]
[1642164546898,23.62784335,144.72,144.63,13.63222695]
[1642164547102,2.763,144.71,144.63,13.63222695]
[1642164547500,2.763,144.71,144.63,13.88222695]
[1642164547798,3.95746133,144.7,144.63,13.88222695]
[1642164548004,4.20746133,144.7,144.63,24.25092695]
[1642164548200,4.20746133,144.7,144.63,24.00092695]
[1642164549000,4.20746133,144.7,144.63,30.00092695]
[1642164549203,3.95746133,144.69,144.63,30.00092695]
[1642164549599,4.20746133,144.69,144.63,30.00092695]
[1642164550000,0.25,144.69,144.63,30.00092695]
[1642164550201,2.765,144.73,144.63,30.00092695]
[1642164550402,2.763,144.74,144.63,39.28492695]
[1642164550604,2.763,144.75,144.63,39.28492695]
[1642164551000,2.763,144.75,144.63,49.34492695]